Cogmind - Beta 15 @@@ ROGUE MODE // 2025.08.04 @ 19:02:45 Player: aoab Result: Destroyed by as-71182 with Assembled Heavy Rifle Performance ------------- Evolutions (0) 0 Regions Visited (2) 400 Robots Destroyed (3) 15 Value Destroyed (30) 30 Prototype IDs (0) 0 Alien Tech Used (0) 0 Bonus (0) 0 TOTAL SCORE: 445 Bonus ------- None Cogmind --------- Core Integrity 0/250 Matter 153/300 Energy 97/100 System Corruption 0% Temperature Cool (99) Movement Core (100) Ox1 Location -10/Mines Parts ------- > --- POWER (1) -------- (None) > --- PROPULSION (2) --- (None) > --- UTILITY (2) ------ Small Storage Unit > --- WEAPON (2) ------- (None) > --- INVENTORY (8) ---- Light Treads Light Treads Compact Wheel Compact Wheel Small Laser Peak State ------------ > --- POWER ------------ Ion Engine > --- PROPULSION ------- Aluminum Leg Aluminum Leg > --- UTILITY ---------- Small Storage Unit > --- WEAPON ----------- Small Laser Assault Rifle > --- INVENTORY -------- Light Ion Engine Light Treads Light Treads Compact Wheel Compact Wheel Small Laser [Rating: 6] Favorites ----------- Power Ion Engine Engine Ion Engine Propulsion Aluminum Leg Leg Aluminum Leg Utility Small Storage Unit Storage Small Storage Unit Weapon Small Laser Energy Gun Small Laser Ballistic Gun Assault Rifle Launcher Grenade Launcher Build | -11 -10 -10 ------- Run | Yrd Mat Min Slots Evolved . | . . . Power . | . . . Propulsion . | . . . Utility . | . . . Weapon . | . . . Parts Attached 9 | 6 . 3 Power 2 | 1 . 1 Engine 2 | 1 . 1 Core . | . . . Reactor . | . . . Propulsion 2 | 2 . . Treads . | . . . Leg 2 | 2 . . Wheel . | . . . Hover . | . . . Flight . | . . . Utility 1 | 1 . . Device . | . . . Storage 1 | 1 . . Processor . | . . . Hackware . | . . . Protection . | . . . Artifact . | . . . Weapon 4 | 2 . 2 Energy Gun 1 | 1 . . Energy Cannon . | . . . Ballistic Gun 2 | 1 . 1 Ballistic Cannon . | . . . Launcher 1 | . . 1 Special Weapon . | . . . Impact Weapon . | . . . Slashing Weapon . | . . . Piercing Weapon . | . . . Special Melee Weapon . | . . . Unidentified Prototypes . | . . . Parts Lost 8 | . . 8 Power 2 | . . 2 Propulsion 2 | . . 2 Utility . | . . . Weapon 4 | . . 4 Highest Loss Streak 8 | . . 8 To Critical Strikes . | . . . Average Backups 6 | 4 6 7 Power 1 | 1 1 1 Propulsion 3 | 2 4 4 Utility . | . . . Weapon 1 | 1 1 2 Tool/Special . | . . . Unused Backups 5 | . . 5 Power . | . . . Propulsion 4 | . . 4 Utility . | . . . Weapon 1 | . . 1 Tool/Special . | . . . Average Slot Usage (%) 80 | . 85 79 Engine 13 | . 14 12 Leg 26 | . 28 25 Storage 14 | . 14 14 Energy Gun 13 | . 14 12 Ballistic Gun 12 | . 14 11 Peak Build Rating 6 | 6 6 6 Average Rating 5 | 4 6 5 On Entrance 4 | . 6 6 Naked Turns . | . . . Heaviest Build 13 | 13 13 13 Greatest Support 20 | 20 20 20 Greatest Overweight (x) 1 | 1 . . Average Overweight (x) . | . . . Largest Inventory Capacity 8 | 8 8 8 Average Capacity 7 | 7 8 8 Most Carried 8 | 8 7 8 Average Carried 6 | 4 6 7 Final Capacity 8 | 8 8 8 Final Carried 7 | 6 7 5 Class Distribution -------------------- 100% | Mutant Dominant Class ---------------- Mutant | -10/Materials Mutant | -10/Mines Resources | -11 -10 -10 ----------- Run | Yrd Mat Min Matter Collected 219 | 197 . 22 Remotely . | . . . Salvage Created 102 | . . 102 Parts 5 | . . 5 Haulers Intercepted . | . . . Recyclers Shooed . | . . . Parts Field Recycled . | . . . Retrieved Matter . | . . . Parts Self-Destructed . | . . . Prevented . | . . . Kills | -11 -10 -10 ------- Run | Yrd Mat Min Combat Hostiles Destroyed 13 | . . 13 Guns 3 | . . 3 AOE 10 | . . 10 Classes Destroyed 2 | . . 2 Swarmer 3 | . . 3 Assembled 10 | . . 10 Best Kill Streak 10 | . . 10 Combat Bots Only 10 | . . 10 Max Kills in Single Turn 4 | . . 4 Gunslinging . | . . . Exploded 4 | . . 4 Melee . | . . . Uniques/NPCs Destroyed . | . . . Combat | -11 -10 -10 -------- Run | Yrd Mat Min Hostile Shots Fired 110 | . 24 86 Missed 37 | . 9 28 Hits 73 | . 15 58 Melee 3 | . . 3 Projectile 70 | . 15 55 Critical Strikes 1 | . . 1 Part Disruptions 1 | . . 1 Damage Taken 927 | . 120 807 Core 254 | . 14 240 Absorbed by Shields . | . . . Core Remaining (%) 100 | 100 . . Volleys Fired 16 | . . 16 Largest 2 | . . 2 Hottest 70 | . . 70 Shots Fired 31 | . . 31 Gun 24 | . . 24 Cannon . | . . . Launcher 7 | . . 7 Special . | . . . Kinetic 10 | . . 10 Thermal 14 | . . 14 Explosive 7 | . . 7 Electromagnetic . | . . . Robot Hit Streak 5 | . . 5 Robot Miss Streak 5 | . . 5 Penetration Max . | . . . Secondary Targets 1 | . . 1 Max Gunslinging Chain 1 | . . 1 Shots Hit Robots 16 | . . 16 Core Hits 27 | . . 27 Critical Kills . | . . . Critical Parts Destroyed . | . . . Critical Strikes . | . . . Melee Attacks . | . . . Impact . | . . . Slashing . | . . . Piercing . | . . . Sneak Attacks . | . . . Combat Hostiles . | . . . Follow-up Attacks . | . . . Damage Inflicted 744 | . . 744 Guns 157 | . . 157 Cannons . | . . . Explosions 587 | . . 587 Melee . | . . . Ramming . | . . . Kinetic 57 | . . 57 Thermal 100 | . . 100 Explosive 587 | . . 587 Electromagnetic . | . . . Impact . | . . . Slashing . | . . . Piercing . | . . . Highest Corruption . | . . . Average Corruption . | . . . Corruption Purged . | . . . Corruption Blocked . | . . . Overload Shots . | . . . Overflow Damage 30 | . . 30 Projectiles . | . . . Explosions 30 | . . 30 Melee . | . . . Knockbacks . | . . . Impact . | . . . Kinetic . | . . . Secondary . | . . . Self-Inflicted Damage 80 | . . 80 Shots 2 | . . 2 Rammed . | . . . Targets Rammed . | . . . Kicked . | . . . Crushed . | . . . Highest Temperature 124 | . . 124 Average Temperature 41 | . . 41 Received Heat Transfer 200 | . . 200 Siege Activations . | . . . Martial Activations . | . . . Shielding Activations . | . . . Robots Disrupted . | . . . Combat Hostiles . | . . . Robots Corrupted . | . . . Combat Hostiles . | . . . Parts Fried . | . . . Impact Corruptions . | . . . Robots Melted . | . . . Combat Hostiles . | . . . Parts Melted . | . . . Heat Transferred 225 | . . 225 Parts Sabotaged . | . . . Parts Stolen . | . . . Parts Stripped . | . . . Power Chain Reactions . | . . . Alert | -11 -10 -10 ------- Run | Yrd Mat Min Maximum Alert Level . | . . . Low Security (%) 100 | 100 100 100 Level 1 . | . . . Level 2 . | . . . Level 3 . | . . . Level 4 . | . . . Level 5 . | . . . High Security . | . . . Max Security . | . . . Peak Influence 70 | . . 70 Initial . | . . . Average 11 | . . 19 Influence Increases 98 | . . 98 Destroy 0b10 Robot/C 60 | . . 60 Destroy Leader 10 | . . 10 Destroy Structure 28 | . . 28 Influence Decreases 98 | . . 98 Time Decay 48 | . . 48 Lost Part 50 | . . 50 Squads Dispatched . | . . . Investigation . | . . . Extermination . | . . . Reinforcement . | . . . Assault . | . . . Garrison . | . . . Intercept . | . . . Searches Triggered . | . . . Construction Impeded . | . . . Haulers Reinforced . | . . . Active Scanning Responses . | . . . Cargo Convoy Interrupts . | . . . Stealth | -11 -10 -10 --------- Run | Yrd Mat Min Distress Signals 1 | . 1 . Communications Jammed . | . . . Distress Signals . | . . . Times Spotted 28 | . 6 22 Peak Tracking Total 18 | . 7 18 Tactical Retreats 1 | . . 1 Traps | -11 -10 -10 ------- Run | Yrd Mat Min Traps Triggered . | . . . Indirectly . | . . . Trap Hack Attempts . | . . . Triggered . | . . . Disarmed . | . . . Reprogrammed . | . . . Reused . | . . . Traps Extracted . | . . . Installed . | . . . Triggered . | . . . Machines | -11 -10 -10 ---------- Run | Yrd Mat Min Machines Disabled . | . . . Max in Single Turn . | . . . Machines Repaired . | . . . Machines Dismantled . | . . . Machines Sabotaged . | . . . Overloaded Fab Kills . | . . . Hacking | -11 -10 -10 --------- Run | Yrd Mat Min Machines Accessed . | . . . Terminals . | . . . Fabricators . | . . . Repair Stations . | . . . Recycling Units . | . . . Scanalyzers . | . . . Garrison Access . | . . . Total Hacks . | . . . Successful . | . . . Failed . | . . . Catastrophic . | . . . Database Lockouts . | . . . Manual . | . . . Terminals . | . . . Fabricators . | . . . Repair Stations . | . . . Recycling Units . | . . . Scanalyzers . | . . . Garrison Access . | . . . Terminal Hacks . | . . . Fabricator Hacks . | . . . Repair Station Hacks . | . . . Recycling Unit Hacks . | . . . Scanalyzer . | . . . Garrison Access Hacks . | . . . Unauthorized Hacks . | . . . Terminals . | . . . Fabricators . | . . . Repair Stations . | . . . Recycling Units . | . . . Scanalyzers . | . . . Garrison Access . | . . . Data Cores Recovered . | . . . Used . | . . . Hacking Detections . | . . . Full Trace Events . | . . . Feedback Events . | . . . Feedback Blocked . | . . . Robot Schematics Acquired . | . . . Robots Built . | . . . Authchips . | . . . Time . | . . . Total Robot Build Rating . | . . . Part Schematics Acquired . | . . . Parts Built . | . . . Authchips . | . . . Time . | . . . Total Part Build Rating . | . . . Parts Repaired . | . . . Time . | . . . Parts Recycled . | . . . Recycled Matter . | . . . Retrieved Matter . | . . . Retrieved Components . | . . . Parts Scanalyzed . | . . . Part Schematics Acquired . | . . . Parts Damaged . | . . . Bothacking | -11 -10 -10 ------------ Run | Yrd Mat Min Used RIF Installer . | . . . Robots Hacked . | . . . Non-combat . | . . . Combat . | . . . Robot Hacks Applied . | . . . Relay Couplers Released . | . . . Fabnet Peak Effective % . | . . . Robots Rewired . | . . . Allies Hacked . | . . . Hacks Repelled . | . . . Allies | -11 -10 -10 -------- Run | Yrd Mat Min Total Allies . | . . . Largest Group . | . . . Highest-Rated Group . | . . . Highest-Rated Ally . | . . . Total Orders . | . . . Ally Attacks . | . . . Total Damage . | . . . Kills . | . . . Allies Corrupted . | . . . Allies Melted . | . . . Intel | -11 -10 -10 ------- Run | Yrd Mat Min Active Infowar (turns) . | . . . Robot Analysis Total . | . . . Derelict Logs Recovered . | . . . Drone Launches . | . . . Drone Recoveries . | . . . Exploration | -11 -10 -10 ------------- Run | Yrd Mat Min Turns Passed 379 | 81 73 225 Spaces Moved 254 | 53 59 142 Core 12 | 12 . . Treads . | . . . Legs 242 | 41 59 142 Wheels . | . . . Hover . | . . . Flight . | . . . Fastest Speed 50 | 50 120 120 Average Speed 120 | 120 120 120 Slowest Speed 190 | 190 120 120 Overloaded Moves . | . . . Propulsion Burnouts . | . . . Robots Hopped . | . . . Potential Cave-ins . | . . . Cave-ins Triggered . | . . . Exploration Rate (%) 16 | 4 21 24 Regions Visited 2 Branch Regions 1 Pre-discovered Areas 1 | . . 1 Known Exits Taken . | . . . Unknown Exits Taken 2 | 1 1 . Scrap Searched . | . . . Spaces Dug . | . . . Terrain Destroyed 39 | . . 39 Melee . | . . . Projectile . | . . . AOE 39 | . . 39 Terrain Rammed . | . . . Walls Destroyed . | . . . Machines Disabled . | . . . Actions | -11 -10 -10 --------- Run | Yrd Mat Min Total 296 | 70 61 165 Wait 3 | . 2 1 Move 252 | 52 58 142 Hop . | . . . Pick Up 14 | 12 1 1 Fast Attach . | . . . Attach 9 | 6 . 3 Detach . | . . . Swap 2 | . . 2 Drop . | . . . Fire 16 | . . 16 Melee . | . . . Ram . | . . . Kick . | . . . Crush . | . . . Escape Stasis . | . . . Rewire . | . . . Trap . | . . . Miscellaneous . | . . . Route ------- -11/Scrapyard -10/Materials -10/Mines History --------- Turn | Location | Event 17 | -11/Scrapyard | Discovered new exit (range 15) 82 | -11/Scrapyard | Entered Materials 138 | -10/Materials | Discovered new exit (range 15) 155 | -10/Materials | Entered Mines 206 | -10/Mines | Learned location of Storage (-8) 317 | -10/Mines | Build established: Mutant 332 | -10/Mines | Assembled infested the area 371 | -10/Mines | Core integrity fell below 50% 378 | -10/Mines | Core integrity fell below 20% 380 | -10/Mines | Destroyed by as-71182 with Assembled Heavy Rifle Last Messages --------------- 00360_ as-82624 destroyed. 00360_ as-12662 destroyed. 00363_ Aluminum Leg destroyed. 00363_ Destroyed Aluminum Leg. 00363_ as-92639 destroyed. 00365_ Lgt. Ion Engine destroyed. 00366_ as-99753 destroyed. 00369_ Aluminum Leg destroyed. 00369_ as-41200 destroyed. 00369_ Sml. Laser destroyed. 00369_ Destroyed Sml. Laser. 00369_ as-01989 destroyed. 00369_ as-79238 destroyed. 00369_ as-36288 destroyed. 00369_ Grenade Launcher destroyed. 00377_ Assault Rifle destroyed. 00378_ Critical hit (Burn: +80). 00378_ Ion Engine destroyed. 00378_ as-94172 destroyed. 00379_ Lgt. Assault Rifle destroyed. Map ----- +----------------------------------------------------+ | ???????????????????????????????????? #? | | ???????????????????????????????????? ## | | ????????????????????????????????????? # | | ????????????????????????????????????? | | ?????????????????????????????????????? | | ?????????????????????????????????????? | | ??????????????????????????????????????? ? | | ??????????????????????????????????????? #? | | ???????????????????????????????????????# #? | | ???????????????????????????????????????#% #? | | ??????????????????????????????????###### #? | | ??????????????????????????????????# ## | | ??????????????????????????????????# #### | | ??????????????????????????????????# #??# | | ??????????????????????????????????# #??### | | ??????????????????????????????????# #????# | | ??????????????????????????????????# #????# | | ??????????????????????????????????# #????# | | ??????????????????????????????????# #????# | | ??????????????????????????????????# #???## | | ??????????????????????????????????# #???# | | ???????????????######????########## #??## | | ???????????????# ###??# #### | | ??????????# ### #??# ########## # | | ??????????# % a% ##??# #???????# ## | | ??????????# % a @ #### #???????# ## | | ??????????# aa % #???????# # | | ????????# aaa% ######???????# | | ???????# % a #????????????## | | ???????# #?????????????## | | ???????## ## #??????????????#### | | ????????# #?## ?????????????????## | | ????????#### ???# ???????????????????## | | ???????????##????# ##???????????????????? | | ?????????????????## ###????????????????????? | | ??????????????????###??????????????????????? | | ???????????????????????????????????????????? | | ???????????????????????????????????????????? | | ???????????????????????????????????????????? | | | | | | | | | | | | | | | | | | | | | | | +----------------------------------------------------+ Best States ------------- Heat Dissipation 25 Energy Generation 10 Energy Capacity 250 Matter Stores 237 Matter Capacity 300 Sight Range 16 Terrain Scan Density 10 Evasion (%) 55 Item Schematics ----------------- None Robot Schematics ------------------ None Fabricated ------------ Nothing Repaired ---------- Nothing Alien Tech Used ----------------- None Achievements -------------- None Challenges ------------ None Game ------ Seed LargeNeutrinoBay Manual? 0 Play Time 00:08:05 Cumulative 8.2 hours Start 2025.08.04 @ 18:57:03 End 2025.08.04 @ 19:02:45 Sessions 1 Manual Loads 0 Difficulty Rogue Special Mode None Game No. 17 Rogue 17 Adventurer 0 Explorer 0 Win Type - Total 0 Types 0/0/0/0/0/0/0/0/0/0 Lore% 3 Gallery% 12 Achievement% 10 Wizard Run 0 Options --------- Layout 1 ASCII 0 Keyboard 0 Movement Mouse Keybinds 0 Fullscreen 1 Font 24/Smallcaps Map View 76x35 Zoom Use 34% Tactical HUD 1 Map Filters NONE Filters NONE Steam 1 RUN: 41621993-2148-4475-80f7-9a919925f6b5